fUST/lending_fUST_20240226
["ID","MTS","AMOUNT","RATE_DAILY","PERIOD"]
[315161429,1708896646978,-500.0,0.00019726,2]
[315161430,1708896646987,-500.0,0.00019726,2]
[315161431,1708896646996,-500.0,0.00019726,2]
[315161432,1708896647006,-572.03726957,0.00019726,2]
[315161433,1708896647015,-500.0,0.00019726,2]
[315161434,1708896647024,-500.0,0.00019726,2]
[315161435,1708896647035,-633.36,0.00019726,2]
[315161436,1708896647044,-500.0,0.00019726,2]
[315161437,1708896647053,-500.0,0.00019726,2]
[315161438,1708896647063,-500.0,0.00019726,2]
[315161440,1708896647072,-685.75,0.00019726,2]
[315161442,1708896647082,-500.0,0.00019726,2]
[315161444,1708896647091,-500.0,0.00019726,2]
[315161445,1708896647100,-500.0,0.00019726,2]
[315161447,1708896647109,-500.0,0.00019726,2]
[315161449,1708896647119,-500.0,0.00019726,2]
[315161450,1708896647129,-500.0,0.00019726,2]
[315161452,1708896647138,-500.0,0.00019726,2]
[315161453,1708896647147,-500.0,0.00019726,2]
[315161455,1708896647157,-500.0,0.00019726,2]
[315161456,1708896647166,-500.0,0.00019726,2]
[315161457,1708896647175,-500.0,0.00019726,2]
[315161458,1708896647186,-500.0,0.00019726,2]
[315161459,1708896647196,-500.0,0.00019726,2]
[315161460,1708896647206,-1232.06,0.00019726,2]
[315161461,1708896647216,-501.45,0.00019726,2]
[315161462,1708896647224,-500.0,0.00019726,2]
[315161463,1708896647235,-370.93073081,0.00019726,2]
[315161464,1708896647246,-500.0,0.00019726,2]
[315161465,1708896647257,-500.0,0.00019726,2]
[315161466,1708896647288,-502.10062869,0.00019726,2]
[315161467,1708896647301,-618.91,0.00019726,2]
[315161468,1708896647312,-500.0,0.00019726,2]
[315161469,1708896647321,-561.17050029,0.00019726,2]
[315161470,1708896647330,-500.0,0.00019726,2]
[315161471,1708896647341,-1445.09,0.00019726,2]
[315161472,1708896647350,-500.0,0.00019726,2]
[315161473,1708896647359,-513.27120478,0.00019726,2]
[315161474,1708896647370,-500.0,0.00019726,2]
[315161475,1708896647379,-500.0,0.00019726,2]
[315161476,1708896647389,-500.0,0.00019726,2]
[315161477,1708896647398,-500.0,0.00019726,2]
[315161478,1708896647408,-500.0,0.00019726,2]
[315161479,1708896647417,-500.0,0.00019726,2]
[315161480,1708896647426,-1995.77,0.00019726,2]
[315161481,1708896647436,-500.0,0.00019726,2]
[315161482,1708896647445,-500.0,0.00019726,2]
[315161483,1708896647455,-2193.07,0.00019726,2]
[315161484,1708896647467,-500.0,0.00019726,2]
[315161485,1708896647477,-2102.65,0.00019726,2]
[315161486,1708896647486,-500.0,0.00019726,2]
[315161487,1708896647495,-500.0,0.00019726,2]
[315161488,1708896647504,-500.0,0.00019726,2]
[315161489,1708896647513,-500.0,0.00019726,2]
[315161490,1708896647522,-1572.91,0.00019726,2]
[315161491,1708896647532,-500.0,0.00019726,2]
[315161492,1708896647541,-500.0,0.00019726,2]
[315161493,1708896647550,-500.0,0.00019726,2]
[315161494,1708896647560,-500.0,0.00019726,2]
[315161495,1708896647569,-611.24857281,0.00019726,2]
[315161496,1708896647579,-500.0,0.00019726,2]
[315161497,1708896647589,-1000.0,0.00019726,2]
[315161498,1708896647598,-500.0,0.00019726,2]
[315161499,1708896647607,-500.0,0.00019726,2]
[315161500,1708896647618,-8871.94,0.00019726,2]
[315161501,1708896647627,-500.0,0.00019726,2]
[315161502,1708896647637,-500.0,0.00019726,2]
[315161503,1708896647646,-500.0,0.00019726,2]
[315161504,1708896647661,-500.0,0.00019726,2]
[315161505,1708896647671,-500.81653216,0.00019726,2]
[315161506,1708896647680,-3183.04,0.00019726,2]
[315161507,1708896647690,-500.0,0.00019726,2]
[315161508,1708896647699,-500.0,0.00019726,2]
[315161509,1708896647708,-500.17639548,0.00019726,2]
[315161510,1708896647717,-500.0,0.00019726,2]
[315161511,1708896647727,-500.0,0.00019726,2]
[315161512,1708896647736,-17277.7,0.00019726,2]
[315161513,1708896647745,-178.52864785,0.00019726,2]
[315161514,1708896647754,-281.9513627,0.00019726,2]
[315161515,1708896647763,-151.0,0.00019726,2]
[315161516,1708896647772,-151.0,0.00019726,2]
[315161517,1708896647781,-151.0,0.00019726,2]
[315161518,1708896647790,-500.0,0.00019726,2]
[315161519,1708896647799,-1668.96,0.00019726,2]
[315161520,1708896647809,-500.0,0.00019726,2]
[315161521,1708896647818,-1084.32,0.00019726,2]
[315161522,1708896647827,-500.0,0.00019726,2]
[315161523,1708896647836,-278.886349,0.00019726,2]
[315161524,1708896647846,-1346.89,0.00019726,2]
[315161525,1708896647855,-500.0,0.00019726,2]
[315161526,1708896647864,-278.886349,0.00019726,2]
[315161527,1708896647873,-1658.31,0.00019726,2]
[315161528,1708896647883,-155.87924966,0.00019726,2]
[315161529,1708896647892,-500.0,0.00019726,2]
[315161530,1708896647901,-151.0,0.00019726,2]
[315161531,1708896647910,-500.0,0.00019726,2]
[315161532,1708896647919,-500.0,0.00019726,2]
[315161533,1708896647928,-6424.74,0.00019726,2]
[315161534,1708896647938,-500.0,0.00019726,2]
[315161535,1708896647947,-500.0,0.00019726,2]
[315161536,1708896647956,-541.66,0.00019726,2]
[315161537,1708896647965,-500.0,0.00019726,2]
[315161538,1708896647974,-500.0,0.00019726,2]
[315161539,1708896647983,-9311.57,0.00019726,2]
[315161540,1708896647992,-500.0,0.00019726,2]
[315161541,1708896648001,-500.0,0.00019726,2]
[315161542,1708896648010,-1845.4,0.00019726,2]
[315161543,1708896648020,-500.0,0.00019726,2]
[315161544,1708896648029,-500.0,0.00019726,2]
[315161545,1708896648038,-500.17034226,0.00019726,2]
[315161546,1708896648047,-2305.61,0.00019726,2]
[315161547,1708896648057,-500.0,0.00019726,2]
[315161548,1708896648066,-500.0,0.00019726,2]
[315161549,1708896648075,-500.0,0.00019726,2]
[315161550,1708896648084,-470.59177166,0.00019726,2]
[315161551,1708896648094,-187.33386723,0.00019726,2]
[315161552,1708896648103,-232.63178787,0.00019726,2]
[315161553,1708896648112,-151.0,0.00019726,2]
[315161554,1708896648121,-500.0,0.00019726,2]
[315161555,1708896648130,-500.0,0.00019726,2]
[315161556,1708896648139,-500.0,0.00019726,2]
[315161557,1708896648149,-500.0,0.00019726,2]
[315161558,1708896648158,-500.0,0.00019726,2]
[315161559,1708896648167,-920.57,0.00019726,2]
[315161560,1708896648177,-405.33060812,0.00019726,2]
[315161561,1708896648188,-2384.22,0.00019726,2]
[315161562,1708896648198,-500.0,0.00019726,2]
[315161563,1708896648207,-500.0,0.00019726,2]
[315161564,1708896648217,-562.5,0.00019726,2]
[315161565,1708896648226,-500.0,0.00019726,2]
[315161566,1708896648235,-151.0,0.00019726,2]
[315161567,1708896648246,-500.0,0.00019726,2]
[315161568,1708896648255,-16373.08,0.00019726,2]
[315161569,1708896648264,-500.0,0.00019726,2]
[315161570,1708896648274,-3589.87,0.00019726,2]
[315161571,1708896648283,-500.0,0.00019726,2]
[315161572,1708896648298,-500.0,0.00019726,2]
[315161573,1708896648307,-500.0,0.00019726,2]
[315161574,1708896648316,-500.72533949,0.00019726,2]
[315161575,1708896648325,-500.0,0.00019726,2]
[315161576,1708896648335,-501.3354814,0.00019726,2]
[315161577,1708896648344,-2692.82504007,0.00019748,2]
[315161578,1708896648353,-2692.82504007,0.00019778,2]
[315161579,1708896648361,-2692.82504007,0.00019809,2]
[315161580,1708896648371,-2692.82504007,0.00019839,2]
[315161581,1708896648380,-500.0,0.00019869,2]
[315161582,1708896648389,-500.0,0.00019869,2]
[315161583,1708896648398,-555.85419396,0.00019869,2]
[315161584,1708896648407,-587.13,0.00019869,2]
[315161585,1708896648417,-587.13,0.00019869,2]
[315161586,1708896648426,-587.13,0.00019869,2]
[315161587,1708896648435,-587.13,0.00019869,2]
[315161588,1708896648444,-587.13,0.00019869,2]
[315161589,1708896648453,-587.13,0.00019869,2]
[315161590,1708896648463,-587.13,0.00019869,2]
[315161591,1708896648472,-2692.82504007,0.0001987,2]
[315161592,1708896648481,-154.564481,0.0001987,2]
[315161593,1708896648490,-1775.86263,0.0001987,2]
[315161594,1708896648500,-1775.86263,0.0001987,2]
[315161595,1708896648509,-151.0,0.0001987,2]
[315161596,1708896648518,-151.0,0.0001987,2]
[315161597,1708896648610,-278.886349,0.0001987,2]
[315161598,1708896648619,-278.886349,0.0001987,2]
[315161599,1708896648629,-233.69715,0.0001987,2]
[315161600,1708896648638,-151.0,0.0001987,2]
[315161601,1708896648647,-151.0,0.0001987,2]
[315161602,1708896648656,-276000.0,0.0001987,2]
[315161603,1708896648666,-153.0,0.0001989,2]
[315161604,1708896648675,-153.0,0.0001989,2]
[315161605,1708896648684,-200.5569553,0.0001989,2]
[315161606,1708896648693,-2692.82504007,0.000199,2]
[315161607,1708896648702,-964.69269397,0.00019999,2]
[315161608,1708896648712,-587.13,0.00019999,2]
[315161609,1708896648721,-587.13,0.00019999,2]
[315161610,1708896648730,-587.13,0.00019999,2]
[315161611,1708896648739,-587.13,0.00019999,2]
[315161612,1708896648748,-587.22703109,0.00019999,2]
[315161613,1708896648758,-408213.89289015,0.0002,2]
[315161614,1708896648877,-640.30302664,0.0002,2]
[315161615,1708896648889,-5887.89935436,0.0002,2]
[315161616,1708896648902,-2633.38831629,0.0002,2]
[315161617,1708896649170,-500.0,0.00019178,2]
[315161618,1708896649179,-585.23587893,0.00019178,2]
[315161619,1708896649189,-500.0,0.00019178,2]
[315161620,1708896649199,-500.0,0.00019452,2]
[315161621,1708896649208,-500.0,0.00019452,2]
[315161622,1708896649217,-500.0,0.00019452,2]
[315161623,1708896649227,-5.17091073,0.00019726,2]
[315161624,1708896649239,-494.82908927,0.00019726,2]
[315161625,1708896649251,-500.0,0.00019726,2]
[315161626,1708896649261,-500.0,0.00019726,2]
[315161627,1708896649275,-1436.80556645,0.0002,2]
[315161628,1708896649313,-153.0,0.000197,2]
[315161629,1708896649322,-111.46625028,0.0002,2]
[315161630,1708896649335,-1000.0,0.0002,2]
[315161631,1708896649346,-3190.91348,0.0002,2]
[315161632,1708896649357,-1477.76177612,0.0002,2]
[315161633,1708896649572,-716.68924705,0.00019442,3]
[315161634,1708896649585,-2826.444806,0.00019442,3]
[315161635,1708896649597,-11962.23843617,0.00019442,3]
[315162444,1708896792906,151.0438027,0.0002181,30]
[315162445,1708896792967,117.30448037,0.00021374,120]
[315162446,1708896792988,33.73932233,0.00021374,120]
[315162452,1708897062490,1361.71651944,0.0002,30]
[315162453,1708897062525,3133.65007382,0.0002,30]
[315162462,1708897252545,151.0438027,0.00021958,30]
[315162463,1708897252572,151.0438027,0.00021519,120]
[315162465,1708897278687,-500.0,0.00028136,120]
[315162466,1708897283872,-150.5,0.0002765,35]
[315162467,1708897283896,-1554.0,0.0002765,35]
[315162468,1708897283919,-1554.0,0.0002765,35]
[315162469,1708897283942,-150.5,0.0002766,35]
[315162470,1708897283965,-245.3,0.0002766,35]
[315162471,1708897283988,-1554.0,0.0002766,35]
[315162472,1708897284011,-1554.0,0.0002766,35]
[315162473,1708897284034,-1554.0,0.0002766,35]
[315162474,1708897284056,-1562.08,0.0002766,35]
[315162475,1708897284079,-150.5,0.0002767,35]
[315162476,1708897284103,-155.36,0.0002767,35]
[315162477,1708897284126,-150.5,0.0002767,35]
[315162478,1708897284149,-155.28,0.0002767,35]
[315162479,1708897284173,-150.5,0.0002767,35]
[315162480,1708897284196,-1554.0,0.0002767,35]
[315162481,1708897284218,-1554.0,0.0002767,35]
[315162482,1708897284241,-1554.0,0.0002767,35]
[315162483,1708897284264,-1554.0,0.0002767,35]
[315162484,1708897284288,-150.5,0.0002768,35]
[315162485,1708897284312,-150.5,0.0002768,35]
[315162486,1708897284334,-162.0,0.0002769,35]
[315162487,1708897284358,-150.5,0.0002769,35]
[315162488,1708897284381,-150.5,0.0002769,35]
[315162489,1708897284417,-164.550368,0.00030959,33]
[315162490,1708897284439,-164.550368,0.00030959,41]
[315162491,1708897284464,-164.550368,0.00030959,49]
[315162492,1708897284488,-164.550368,0.00030959,57]
[315162493,1708897284513,-164.550368,0.00030959,64]
[315162494,1708897284537,-164.550368,0.00030959,72]
[315162495,1708897284561,-164.550368,0.00030959,80]
[315162496,1708897284582,-164.550368,0.00030959,88]
[315162497,1708897284606,-164.550368,0.00030959,96]
[315162498,1708897284629,-164.550368,0.00030959,104]
[315162499,1708897284651,-164.550368,0.00030959,112]
[315162500,1708897284675,-164.550368,0.00030959,120]
[315162501,1708897284716,-2416.70084324,0.00033285,120]
[315162632,1708897425889,1128.35851477,0.0002,30]
[315162633,1708897428118,736.25224787,0.0002,30]
[315162637,1708897521016,151.0438027,0.00021697,120]
[315163278,1708897838418,-155.04496304,0.00019018,2]
[315163280,1708897838428,-640.11979573,0.00019019,2]
[315163282,1708897838438,-200.10399098,0.00019068,2]
[315163284,1708897838447,-500.0,0.00019077,2]
[315163286,1708897838456,-174.34714352,0.00019078,2]
[315163288,1708897838465,-7906.01828592,0.00019078,2]
[315163291,1708897838476,-1017.76,0.00019078,2]
[315163293,1708897838488,-31942.49177133,0.00019078,2]
[315163295,1708897838497,-500.0,0.00019132,2]
[315163297,1708897838506,-174.34714351,0.00019147,2]
[315163299,1708897838515,-520.89,0.00019168,3]
[315163301,1708897838525,-999.6258381,0.00019177,2]
[315163302,1708897838534,-1518.81378183,0.00019177,2]
[315163303,1708897838543,-243.58118859,0.00019178,2]
[315163304,1708897838553,-500.0,0.00019178,2]
[315163305,1708897838563,-500.0,0.00019178,2]
[315163306,1708897838572,-500.0,0.00019178,2]
[315163307,1708897838581,-500.0,0.00019178,2]
[315163308,1708897838590,-500.0,0.00019178,2]
[315163309,1708897838598,-551.96381553,0.00019178,2]
[315163310,1708897838607,-582.12796174,0.00019178,2]
[315163311,1708897838617,-500.0,0.00019178,2]
[315163312,1708897838626,-500.0,0.00019178,2]
[315163313,1708897838638,-500.0,0.00019178,2]
[315163314,1708897838648,-151.0,0.00019178,2]
[315163315,1708897838659,-549.86995399,0.00019178,2]
[315163316,1708897838669,-500.0,0.00019178,2]
[315163317,1708897838678,-1139.59,0.00019178,2]
[315163318,1708897838687,-500.0,0.00019178,2]
[315163319,1708897838696,-500.0,0.00019178,2]
[315163320,1708897838705,-500.0,0.00019178,2]
[315163321,1708897838716,-500.0,0.00019178,2]
[315163323,1708897838732,-500.0,0.00019178,2]
[315163325,1708897838743,-186.59191859,0.00019178,2]
[315163327,1708897838752,-539.49,0.00019178,2]
[315163329,1708897838762,-243.58118859,0.00019178,2]
[315163331,1708897838772,-500.0,0.00019178,2]
[315163333,1708897838782,-500.0,0.00019178,2]
[315163335,1708897838791,-500.0,0.00019178,2]
[315163337,1708897838800,-500.0,0.00019178,2]
[315163339,1708897838809,-500.0,0.00019178,2]
[315163341,1708897838818,-500.0,0.00019178,2]
[315163343,1708897838828,-319.09963093,0.00019178,2]
[315163345,1708897838837,-281.21571745,0.00019178,2]
[315163347,1708897838846,-500.0,0.00019178,2]
[315163349,1708897838856,-500.0,0.00019178,2]
[315163351,1708897838865,-500.4285355,0.00019178,2]
[315163353,1708897838875,-1000.0,0.00019178,2]
[315163355,1708897838884,-502.61238656,0.00019178,2]
[315163357,1708897838894,-500.0,0.00019178,2]
[315163359,1708897838903,-500.0,0.00019178,2]
[315163361,1708897838913,-500.0,0.00019178,2]
[315163363,1708897838922,-500.0,0.00019178,2]
[315163365,1708897838931,-500.0,0.00019178,2]
[315163367,1708897838940,-500.0,0.00019178,2]
[315163369,1708897838949,-500.0,0.00019178,2]
[315163371,1708897838958,-500.0,0.00019178,2]
[315163373,1708897838967,-500.0,0.00019178,2]
[315163375,1708897838977,-500.0,0.00019178,2]
[315163377,1708897838986,-500.0,0.00019178,2]
[315163379,1708897838995,-500.0,0.00019178,2]
[315163381,1708897839006,-500.0,0.00019178,2]
[315163383,1708897839015,-500.0,0.00019178,2]
[315163385,1708897839024,-394.55461752,0.00019178,2]
[315163387,1708897839032,-500.0,0.00019178,2]
[315163389,1708897839042,-500.0,0.00019178,2]
[315163391,1708897839051,-500.0,0.00019178,2]
[315163393,1708897839060,-500.0,0.00019178,2]
[315163395,1708897839069,-500.0,0.00019178,2]
[315163396,1708897839078,-500.0,0.00019178,2]
[315163398,1708897839087,-500.0,0.00019178,2]
[315163400,1708897839096,-500.0,0.00019178,2]
[315163402,1708897839105,-500.0,0.00019178,2]
[315163404,1708897839114,-515.24992095,0.00019178,2]
[315163406,1708897839124,-500.0,0.00019178,2]
[315163408,1708897839133,-500.0,0.00019178,2]
[315163410,1708897839142,-500.0,0.00019178,2]
[315163412,1708897839151,-500.0,0.00019178,2]
[315163414,1708897839160,-500.0,0.00019178,2]
[315163416,1708897839169,-500.0,0.00019178,2]
[315163418,1708897839179,-500.0,0.00019178,2]
[315163420,1708897839188,-500.0,0.00019178,2]
[315163422,1708897839197,-500.0,0.00019178,2]
[315163424,1708897839206,-500.0,0.00019178,2]
[315163426,1708897839216,-177.03199438,0.00019178,2]
[315163428,1708897839225,-500.0,0.00019178,2]
[315163430,1708897839234,-500.0,0.00019178,2]
[315163432,1708897839243,-500.0,0.00019178,2]
[315163434,1708897839252,-503.20204968,0.00019178,2]
[315163436,1708897839262,-500.0,0.00019178,2]
[315163438,1708897839271,-212.87883413,0.00019178,2]
[315163440,1708897839280,-500.0,0.00019178,2]
[315163442,1708897839289,-500.66949718,0.00019178,2]
[315163444,1708897839298,-500.0,0.00019178,2]
[315163446,1708897839308,-500.0,0.00019178,2]
[315163448,1708897839317,-355.86350824,0.00019178,2]
[315163450,1708897839326,-500.0,0.00019178,2]
[315163452,1708897839336,-589.1944947,0.00019178,2]
[315163454,1708897839345,-500.62528751,0.00019178,2]
[315163456,1708897839354,-695.86,0.00019178,2]
[315163458,1708897839363,-500.0,0.00019178,2]
[315163460,1708897839372,-500.0,0.00019178,2]
[315163462,1708897839381,-500.0,0.00019178,2]
[315163464,1708897839390,-500.0,0.00019178,2]
[315163466,1708897839399,-500.0,0.00019178,2]
[315163468,1708897839408,-500.0,0.00019178,2]
[315163470,1708897839418,-519.59807134,0.00019178,2]
[315163472,1708897839430,-500.0,0.00019178,2]
[315163474,1708897839439,-500.0,0.00019178,2]
[315163476,1708897839448,-500.0,0.00019178,2]
[315163478,1708897839457,-502.42542064,0.00019178,2]
[315163480,1708897839468,-500.0,0.00019178,2]
[315163482,1708897839478,-500.0,0.00019178,2]
[315163484,1708897839487,-500.9993525,0.00019178,2]
[315163486,1708897839497,-500.0,0.00019178,2]
[315163488,1708897839506,-500.0,0.00019178,2]
[315163490,1708897839516,-500.0,0.00019178,2]
[315163492,1708897839525,-500.0,0.00019178,2]
[315163494,1708897839534,-500.0,0.00019178,2]
[315163496,1708897839543,-500.0,0.00019178,2]
[315163498,1708897839552,-602.69,0.00019178,2]
[315163500,1708897839562,-501.35115534,0.00019178,2]
[315163502,1708897839571,-500.0,0.00019178,2]
[315163504,1708897839580,-500.0,0.00019178,2]
[315163506,1708897839590,-500.0,0.00019178,2]
[315163508,1708897839600,-500.0,0.00019178,2]
[315163510,1708897839609,-500.0,0.00019178,2]
[315163512,1708897839619,-391.22819217,0.00019178,2]
[315163514,1708897839628,-166.80363752,0.00019178,2]
[315163516,1708897839640,-2722.22,0.00019178,2]
[315163518,1708897839650,-495.26917677,0.00019178,2]
[315163520,1708897839659,-500.0,0.00019178,2]
[315163522,1708897839669,-500.0,0.00019178,2]
[315163524,1708897839678,-500.0,0.00019178,2]
[315163526,1708897839687,-500.0,0.00019178,2]
[315163528,1708897839696,-500.38609423,0.00019178,2]
[315163530,1708897839706,-500.0,0.00019178,2]
[315163532,1708897839716,-1231.69,0.00019178,2]
[315163534,1708897839726,-500.0,0.00019178,2]
[315163536,1708897839735,-500.0,0.00019178,2]
[315163538,1708897839745,-500.0,0.00019178,2]
[315163540,1708897839754,-500.0,0.00019178,2]
[315163542,1708897839763,-974.67,0.00019178,2]
[315163544,1708897839773,-500.0,0.00019178,2]
[315163546,1708897839783,-500.0,0.00019178,2]
[315163548,1708897839792,-500.0,0.00019178,2]
[315163550,1708897839801,-500.0,0.00019178,2]
[315163552,1708897839810,-500.0,0.00019178,2]
[315163554,1708897839820,-243.58118859,0.00019178,2]
[315163556,1708897839828,-500.0,0.00019178,2]
[315163558,1708897839838,-500.0,0.00019178,2]
[315163560,1708897839847,-500.0,0.00019178,2]
[315163562,1708897839856,-500.0,0.00019178,2]
[315163564,1708897839865,-500.0,0.00019178,2]
[315163566,1708897839874,-500.0,0.00019178,2]
[315163568,1708897839883,-500.0,0.00019178,2]
[315163570,1708897839893,-500.0,0.00019178,2]
[315163572,1708897839902,-500.0,0.00019178,2]
[315163574,1708897839911,-500.0,0.00019178,2]
[315163576,1708897839921,-497.28656827,0.00019178,2]
[315163578,1708897839930,-500.0,0.00019178,2]
[315163580,1708897839940,-500.0,0.00019178,2]
[315163582,1708897839949,-500.0,0.00019178,2]
[315163584,1708897839958,-276.61991267,0.00019178,2]
[315163586,1708897839967,-500.0,0.00019178,2]
[315163588,1708897839977,-500.0,0.00019178,2]
[315163590,1708897839986,-500.0,0.00019178,2]
[315163592,1708897839995,-319.09963093,0.00019178,2]
[315163594,1708897840005,-500.0,0.00019178,2]
[315163596,1708897840014,-500.0,0.00019178,2]
[315163598,1708897840023,-403.61859012,0.00019178,2]
[315163600,1708897840033,-500.0,0.00019178,2]
[315163602,1708897840042,-500.0,0.00019178,2]
[315163604,1708897840051,-500.0,0.00019178,2]
[315163606,1708897840060,-500.0,0.00019178,2]
[315163608,1708897840068,-500.0,0.00019178,2]
[315163610,1708897840077,-500.0,0.00019178,2]
[315163612,1708897840086,-500.0,0.00019178,2]
[315163613,1708897840096,-377.86302329,0.00019178,2]
[315163616,1708897840107,-500.0,0.00019178,2]
[315163617,1708897840116,-500.0,0.00019178,2]
[315163619,1708897840125,-500.0,0.00019178,2]
[315163621,1708897840134,-500.0,0.00019178,2]
[315163623,1708897840143,-500.0,0.00019178,2]
[315163625,1708897840152,-500.0,0.00019178,2]
[315163627,1708897840161,-500.69074153,0.00019178,2]
[315163629,1708897840170,-500.0,0.00019178,2]
[315163631,1708897840179,-500.0,0.00019178,2]
[315163633,1708897840189,-500.0,0.00019178,2]
[315163635,1708897840198,-500.0,0.00019178,2]
[315163637,1708897840207,-500.0,0.00019178,2]
[315163639,1708897840217,-500.66398244,0.00019178,2]
[315163641,1708897840227,-500.0,0.00019178,2]
[315163643,1708897840236,-500.0,0.00019178,2]
[315163646,1708897840246,-500.0,0.00019178,2]
[315163647,1708897840255,-500.0,0.00019178,2]
[315163649,1708897840264,-500.0,0.00019178,2]
[315163651,1708897840273,-500.0,0.00019178,2]
[315163653,1708897840282,-500.0,0.00019178,2]
[315163655,1708897840291,-368.48758608,0.00019178,2]
[315163657,1708897840301,-500.0,0.00019178,2]
[315163659,1708897840310,-500.0,0.00019178,2]
[315163661,1708897840319,-500.54304507,0.00019178,2]
[315163664,1708897840328,-500.0,0.00019178,2]
[315163666,1708897840338,-500.0,0.00019178,2]
[315163667,1708897840347,-1852.92,0.00019178,2]
[315163670,1708897840357,-500.0,0.00019178,2]
[315163671,1708897840367,-500.0,0.00019178,2]
[315163674,1708897840377,-500.0,0.00019178,2]
[315163676,1708897840386,-500.0,0.00019178,2]
[315163677,1708897840395,-500.0,0.00019178,2]
[315163679,1708897840404,-500.19563633,0.00019178,2]
[315163681,1708897840415,-500.0,0.00019178,2]
[315163684,1708897840425,-500.0,0.00019178,2]
[315163685,1708897840436,-500.0,0.00019178,2]
[315163688,1708897840446,-500.0,0.00019178,2]
[315163689,1708897840457,-500.46226267,0.00019178,2]
[315163691,1708897840466,-500.0,0.00019178,2]
[315163693,1708897840475,-500.0,0.00019178,2]
[315163695,1708897840485,-500.0,0.00019178,2]
[315163697,1708897840494,-500.0,0.00019178,2]
[315163699,1708897840503,-500.0,0.00019178,2]
[315163701,1708897840512,-500.0,0.00019178,2]
[315163703,1708897840521,-500.0,0.00019178,2]
[315163705,1708897840531,-500.0,0.00019178,2]
[315163707,1708897840539,-500.0,0.00019178,2]
[315163709,1708897840549,-1487.16,0.00019178,2]
[315163721,1708897840649,-500.0,0.00019178,2]
[315163723,1708897840658,-500.0,0.00019178,2]
[315163725,1708897840667,-500.0,0.00019178,2]
[315163727,1708897840679,-500.0,0.00019178,2]
[315163729,1708897840690,-500.0,0.00019178,2]
[315163731,1708897840700,-501.56260452,0.00019178,2]
[315163733,1708897840710,-500.0,0.00019178,2]
[315163734,1708897840719,-500.0,0.00019178,2]
[315163737,1708897840729,-500.0,0.00019178,2]
[315163740,1708897840738,-500.0,0.00019178,2]
[315163743,1708897840748,-500.0,0.00019178,2]
[315163745,1708897840757,-500.0,0.00019178,2]
[315163747,1708897840767,-500.0,0.00019178,2]
[315163749,1708897840777,-500.0,0.00019178,2]
[315163751,1708897840786,-500.0,0.00019178,2]
[315163753,1708897840796,-500.0,0.00019178,2]
[315163755,1708897840806,-500.0,0.00019178,2]
[315163758,1708897840816,-647.50116398,0.00019178,2]
[315163759,1708897840826,-500.0,0.00019178,2]
[315163761,1708897840835,-500.0,0.00019178,2]
[315163764,1708897840844,-500.0,0.00019178,2]
[315163766,1708897840854,-1182.12,0.00019178,2]
[315163767,1708897840864,-500.0,0.00019178,2]
[315163769,1708897840874,-500.0,0.00019178,2]
[315163771,1708897840884,-500.0,0.00019178,2]
[315163774,1708897840896,-500.0,0.00019178,2]